Cogmind - Beta 10.1 @@@ ROGUE MODE // 2020.10.01 @ 01:18:49 Player: HOTSOUP Result: Destroyed by Y-54 Guardian with Gatling Laser Performance ------------- Evolutions (3) 1500 Regions Visited (9) 1800 Robots Destroyed (14) 70 Value Destroyed (981) 981 Prototype IDs (7) 140 Alien Tech Used (0) 0 Bonus (1325) 1325 TOTAL SCORE: 5816 Bonus ------- High Alert Combat Kills 47 Follower Combat Kills 142 Entered Garrisons 400 Used RIF Installer 500 Aligned with FarCom 300 Friendly Fire -64 Cogmind --------- Core Integrity 0/700 Matter 212/300 Energy 11/100 System Corruption 0% Temperature Cool (7) Movement Flying (40) Location -7/Factory Parts ------- > --- POWER (1) -------- (None) > --- PROPULSION (2) --- VTOL Module Improved Cesium-ion Thruster > --- UTILITY (8) ------ Improved Melee Analysis Suite Improved Melee Analysis Suite Target Analyzer Core Analyzer Relay Coupler [NC] (7) Relay Coupler [Sentry] (13) System Backup Module > --- WEAPON (2) ------- Remote Datajack > --- INVENTORY (4) ---- Improved Deuterium Engine VTOL Module Relay Coupler [NC] (22) Relay Coupler [Behemoth] (12) Peak State ------------ > --- POWER ------------ Improved Deuterium Engine > --- PROPULSION ------- Xenon Bombardment Thruster Improved Cesium-ion Thruster > --- UTILITY ---------- Improved Melee Analysis Suite Improved Melee Analysis Suite Target Analyzer Core Analyzer Relay Coupler [NC] Relay Coupler [Sentry] System Backup Module > --- WEAPON ----------- Gauss Rifle Remote Datajack > --- INVENTORY -------- VTOL Module VTOL Module Relay Coupler [NC] Relay Coupler [Behemoth] [Rating: 46] Favorites ----------- Power Light Nuclear Core Engine Improved Deuterium Engine Power Core Light Nuclear Core Propulsion VTOL Module Flight Unit VTOL Module Utility Improved Melee Analysis Suite Device System Backup Module Storage Lightpack 2.0 Processor Improved Melee Analysis Suite Hackware Relay Coupler [NC] Protection Medium Reactive Plating Weapon Remote Datajack Energy Gun Particle Gun Energy Cannon Firepult Ballistic Gun Gauss Rifle Launcher Grenade Launcher Special Weapon Remote Datajack Build | -11 -10 -10 -10 -9 -8 -8 -7 -7 -7 ------- Run | Scr Mat Min Exi Min Mat Gar Fac Gar Fac Slots Evolved 6 | . . . . . 4 . 2 . . Power . | . . . . . . . . . . Propulsion . | . . . . . . . . . . Utility 6 | . . . . . 4 . 2 . . Weapon . | . . . . . . . . . . Parts Attached 48 | . 3 . 3 5 1 9 7 12 8 Power 3 | . . . . . . . . 2 1 Engine 1 | . . . . . . . . . 1 Core 2 | . . . . . . . . 2 . Reactor . | . . . . . . . . . . Propulsion 7 | . . . . . 1 . 1 2 3 Treads . | . . . . . . . . . . Leg . | . . . . . . . . . . Wheel . | . . . . . . . . . . Hover . | . . . . . . . . . . Flight 7 | . . . . . 1 . 1 2 3 Utility 22 | . 1 . 1 2 . 8 4 3 3 Device 10 | . . . . 2 . 4 1 1 2 Storage 1 | . . . 1 . . . . . . Processor 8 | . 1 . . . . 4 2 . 1 Hackware 2 | . . . . . . . . 2 . Protection 1 | . . . . . . . 1 . . Artifact . | . . . . . . . . . . Weapon 16 | . 2 . 2 3 . 1 2 5 1 Energy Gun 4 | . 2 . . . . . . 2 . Energy Cannon 6 | . . . 2 2 . 1 1 . . Ballistic Gun 3 | . . . . . . . 1 1 1 Ballistic Cannon . | . . . . . . . . . . Launcher 1 | . . . . 1 . . . . . Special Weapon 2 | . . . . . . . . 2 . Impact Weapon . | . . . . . . . . . . Slashing Weapon . | . . . . . . . . . . Piercing Weapon . | . . . . . . . . . . Special Melee Weapon . | . . . . . . . . . . Unidentified Prototypes 5 | . . . 3 1 . . . . 1 Parts Lost 10 | . . . . 1 . . . 7 2 Power 1 | . . . . . . . . . 1 Propulsion 1 | . . . . . . . . 1 . Utility 2 | . . . . . . . . 2 . Weapon 6 | . . . . 1 . . . 4 1 Highest Loss Streak 2 | . . . . 1 . . . 2 1 Average Slot Usage (%) 50 | . 20 42 12 10 9 26 43 72 83 Core 1 | . . . . . . . . 2 3 Flight 8 | . . . . . 1 9 6 11 15 Device 4 | . . . . 7 7 6 2 2 8 Processor 21 | . 10 14 3 . . 10 31 34 26 Hackware 5 | . . . . . . . . 8 15 Energy Gun 2 | . 10 28 7 . . . . 2 . Ballistic Gun 1 | . . . . . . . . 1 5 Special Weapon 2 | . . . . . . . . 4 7 Naked Turns 257 | . 24 . 175 58 . . . . . Heaviest Build 22 | . 3 3 3 22 8 22 4 9 13 Greatest Support 15 | 3 3 3 3 3 4 4 4 10 15 Greatest Overweight (x) 7 | . . . . 7 2 5 . 1 . Average Overweight (x) . | . . . . . . . . . . Largest Inventory Capacity 24 | 4 4 4 24 4 4 4 4 4 4 Average Capacity 4 | 4 4 4 4 4 4 4 4 4 4 Most Carried 4 | . . . 4 4 4 4 4 4 4 Average Carried 3 | . . . 2 1 2 3 2 3 3 Final Capacity 4 | 4 4 4 4 4 4 4 4 4 4 Final Carried 4 | . . . 2 2 4 2 4 3 4 Class Distribution -------------------- 52% | Mutant 37% | Bothacker-Mutant 6% | Commander-Mutant 3% | Scavenger-Mutant Dominant Class ---------------- Mutant | -10/Materials Mutant | -10/Mines Mutant | -10/Exiles Mutant | -9/Mines Mutant | -8/Materials Mutant | -8/Garrison Mutant | -7/Factory Bothacker-Mutant | -7/Garrison Bothacker-Mutant | -7/Factory Resources | -11 -10 -10 -10 -9 -8 -8 -7 -7 -7 ----------- Run | Scr Mat Min Exi Min Mat Gar Fac Gar Fac Matter Collected 867 | 200 . 30 . 84 . 56 . 373 124 Remotely . | . . . . . . . . . . Salvage Created 577 | . . 30 47 . . . . 386 114 Parts 26 | . . 5 1 . . . . 16 4 Haulers Intercepted . | . . . . . . . . . . Recyclers Shooed . | . . . . . . . . . . Parts Field Recycled . | . . . . . . . . . . Retrieved Matter . | . . . . . . . . . . Parts Self-Destructed . | . . . . . . . . . . Prevented . | . . . . . . . . . . Kills | -11 -10 -10 -10 -9 -8 -8 -7 -7 -7 ------- Run | Scr Mat Min Exi Min Mat Gar Fac Gar Fac Combat Hostiles Destroyed 13 | . . . 1 . . . . 10 2 Guns 12 | . . . . . . . . 10 2 AOE 1 | . . . 1 . . . . . . Classes Destroyed 6 | . . 1 1 . . . . 3 1 Builder 1 | . . 1 . . . . . . . Swarmer 4 | . . . . . . . . 4 . Grunt 5 | . . . . . . . . 5 . Sentry 2 | . . . . . . . . 1 1 Hunter 1 | . . . 1 . . . . . . Programmer 1 | . . . . . . . . . 1 Best Kill Streak 6 | . . 1 1 . . . . 6 2 Combat Bots Only 6 | . . . 1 . . . . 6 2 Max Kills in Single Turn 2 | . . 1 1 . . . . 2 1 Gunslinging . | . . . . . . . . . . Exploded 1 | . . . 1 . . . . . . Melee . | . . . . . . . . . . Uniques/NPCs Destroyed . | . . . . . . . . . . Combat | -11 -10 -10 -10 -9 -8 -8 -7 -7 -7 -------- Run | Scr Mat Min Exi Min Mat Gar Fac Gar Fac Damage Taken 2089 | . . 12 44 416 . 173 21 975 448 Core 982 | . . . 23 203 . 48 . 520 188 Absorbed by Shields 6 | . . . . . . 6 . . . Core Remaining (%) 66 | 100 . . . 9 . 91 . . . Volleys Fired 98 | . . 1 2 5 . 1 1 55 33 Largest 2 | . . 2 1 1 . 1 1 1 1 Hottest 250 | . . 80 250 250 . 250 250 65 30 Shots Fired 99 | . . 2 2 5 . 1 1 55 33 Gun 79 | . . 2 . . . . . 54 23 Cannon 6 | . . . 2 2 . 1 1 . . Launcher 3 | . . . . 3 . . . . . Special 11 | . . . . . . . . 1 10 Kinetic 55 | . . . . . . . . 32 23 Thermal 29 | . . 1 2 2 . 1 1 22 . Explosive 3 | . . . . 3 . . . . . Electromagnetic 1 | . . 1 . . . . . . . Robot Hit Streak 10 | . . 2 3 4 . . 4 10 10 Robot Miss Streak 4 | . . . 1 1 . . . 3 4 Penetration Max 1 | . . . . . . . . 1 1 Secondary Targets . | . . . . . . . . . . Shots Hit Robots 67 | . . 2 2 2 . . 1 37 23 Core Hits 36 | . . 1 4 1 . . 3 22 5 Critical Hits 1 | . . . . . . . . . 1 Critical Kills . | . . . . . . . . . . Critical Parts Destroyed 1 | . . . . . . . . . 1 Melee Attacks . | . . . . . . . . . . Impact . | . . . . . . . . . . Slashing . | . . . . . . . . . . Piercing . | . . . . . . . . . . Sneak Attacks . | . . . . . . . . . . Combat Hostiles . | . . . . . . . . . . Follow-up Attacks . | . . . . . . . . . . Damage Inflicted 1459 | . . 24 132 55 . . 32 790 426 Guns 1240 | . . 24 . . . . . 790 426 Cannons . | . . . . . . . . . . Explosions 219 | . . . 132 55 . . 32 . . Melee . | . . . . . . . . . . Ramming . | . . . . . . . . . . Kinetic 1021 | . . . . . . . . 595 426 Thermal 399 | . . 12 132 28 . . 32 195 . Explosive 27 | . . . . 27 . . . . . Electromagnetic 12 | . . 12 . . . . . . . Impact . | . . . . . . . . . . Slashing . | . . . . . . . . . . Piercing . | . . . . . . . . . . Highest Corruption . | . . . . . . . . . . Average Corruption . | . . . . . . . . . . Corruption Purged . | . . . . . . . . . . Overload Shots . | . . . . . . . . . . Overflow Damage . | . . . . . . . . . . Projectiles . | . . . . . . . . . . Explosions . | . . . . . . . . . . Melee . | . . . . . . . . . . Knockbacks . | . . . . . . . . . . Impact . | . . . . . . . . . . Kinetic . | . . . . . . . . . . Secondary . | . . . . . . . . . . Self-Inflicted Damage 109 | . . . . . . 109 . . . Shots 3 | . . . . . . 3 . . . Rammed . | . . . . . . . . . . Targets Rammed . | . . . . . . . . . . Kicked . | . . . . . . . . . . Crushed . | . . . . . . . . . . Highest Temperature 300 | . . 3 300 300 . 231 184 104 1 Average Temperature 85 | . . 2 157 157 . 118 102 33 1 Received Heat Transfer 507 | . . 6 . . . 33 . 408 60 Siege Activations . | . . . . . . . . . . Robots Corrupted . | . . . . . . . . . . Combat Hostiles . | . . . . . . . . . . Parts Fried . | . . . . . . . . . . Impact Corruptions . | . . . . . . . . . . Robots Melted . | . . . . . . . . . . Combat Hostiles . | . . . . . . . . . . Parts Melted 2 | . . . 2 . . . . . . Heat Transferred 1909 | . . 25 960 240 . . 240 444 . Parts Sabotaged . | . . . . . . . . . . Parts Stolen . | . . . . . . . . . . Parts Stripped . | . . . . . . . . . . Power Chain Reactions . | . . . . . . . . . . Missiles Intercepted . | . . . . . . . . . . Alert | -11 -10 -10 -10 -9 -8 -8 -7 -7 -7 ------- Run | Scr Mat Min Exi Min Mat Gar Fac Gar Fac Peak Influence 509 | . . 5 . 15 15 166 383 509 281 Initial 268 | . . . . . . 12 86 268 266 Average 182 | . . 3 . 2 . 57 178 440 144 Maximum Alert Level 2 | . . . . . . . 2 2 1 Low Security (%) 60 | 100 100 100 . 100 100 100 82 . 54 Level 1 20 | . . . . . . . 17 25 45 Level 2 18 | . . . . . . . . 74 . Level 3 . | . . . . . . . . . . Level 4 . | . . . . . . . . . . Level 5 . | . . . . . . . . . . High Security . | . . . . . . . . . . Max Security . | . . . . . . . . . . Squads Dispatched 3 | . . . . . . . 1 . 2 Investigation 2 | . . . . . . . 1 . 1 Extermination 1 | . . . . . . . . . 1 Reinforcement . | . . . . . . . . . . Assault . | . . . . . . . . . . Garrison . | . . . . . . . . . . Intercept . | . . . . . . . . . . Construction Impeded . | . . . . . . . . . . Haulers Reinforced . | . . . . . . . . . . Stealth | -11 -10 -10 -10 -9 -8 -8 -7 -7 -7 --------- Run | Scr Mat Min Exi Min Mat Gar Fac Gar Fac Distress Signals 1 | . . . . . . . . . 1 Communications Jammed . | . . . . . . . . . . Distress Signals . | . . . . . . . . . . Times Spotted 64 | . . 2 3 11 1 8 4 24 11 Peak Tracking Total 7 | . . 2 3 4 2 7 2 5 4 Tactical Retreats 18 | . . 1 1 3 . . 1 5 7 Traps | -11 -10 -10 -10 -9 -8 -8 -7 -7 -7 ------- Run | Scr Mat Min Exi Min Mat Gar Fac Gar Fac Traps Triggered 4 | . . . . . . 3 . 1 . Indirectly . | . . . . . . . . . . Trap Hack Attempts . | . . . . . . . . . . Triggered . | . . . . . . . . . . Disarmed . | . . . . . . . . . . Reprogrammed . | . . . . . . . . . . Reused . | . . . . . . . . . . Traps Extracted . | . . . . . . . . . . Installed . | . . . . . . . . . . Triggered . | . . . . . . . . . . Exploded 2 | . . . 2 . . . . . . Machines | -11 -10 -10 -10 -9 -8 -8 -7 -7 -7 ---------- Run | Scr Mat Min Exi Min Mat Gar Fac Gar Fac Machines Disabled 5 | . . . 1 1 . 2 . 1 . Max in Single Turn 1 | . . . 1 1 . 1 . 1 . Garrison Relay 1 | . . . . . . . . 1 . Phase Generator 1 | . . . . . . 1 . . . Machines Sabotaged . | . . . . . . . . . . Garrisons Compromised . | . . . . . . . . . . Overloaded Fab Kills . | . . . . . . . . . . Fab Network Shutdowns 1 | . . . . . . . 1 . . Hacking | -11 -10 -10 -10 -9 -8 -8 -7 -7 -7 --------- Run | Scr Mat Min Exi Min Mat Gar Fac Gar Fac Machines Accessed 15 | . 1 . . 1 1 . 7 . 5 Terminals 10 | . 1 . . . . . 4 . 5 Fabricators 1 | . . . . . . . 1 . . Repair Stations 1 | . . . . . . . 1 . . Recycling Units . | . . . . . . . . . . Scanalyzers . | . . . . . . . . . . Garrison Access 2 | . . . . . 1 . 1 . . Total Hacks 44 | . 3 . . 1 1 . 25 . 14 Successful 25 | . 1 . . 1 1 . 17 . 5 Failed 19 | . 2 . . . . . 8 . 9 Catastrophic 1 | . . . . . . . . . 1 Database Lockouts . | . . . . . . . . . . Manual 29 | . 3 . 1 . . . 13 . 12 Terminals 31 | . 3 . . . . . 14 . 14 Fabricators 7 | . . . . . . . 7 . . Repair Stations 2 | . . . . . . . 2 . . Recycling Units . | . . . . . . . . . . Scanalyzers . | . . . . . . . . . . Garrison Access 3 | . . . . . 1 . 2 . . Terminal Hacks 5 | . . . . 1 . . 3 . 1 Prototype ID Bank 1 | . . . . . . . 1 . . Open Door 1 | . . . . 1 . . . . . Terminal Index 1 | . . . . . . . 1 . . Locate Traps 1 | . . . . . . . 1 . . Dispatch Records 1 | . . . . . . . . . 1 Fabricator Hacks 4 | . . . . . . . 4 . . Network Status 2 | . . . . . . . 2 . . Build 2 | . . . . . . . 2 . . Repair Station Hacks 2 | . . . . . . . 2 . . Scan Component 1 | . . . . . . . 1 . . Repair 1 | . . . . . . . 1 . . Recycling Unit Hacks . | . . . . . . . . . . Scanalyzer . | . . . . . . . . . . Garrison Access Hacks 3 | . . . . . 1 . 2 . . Unlock Access 2 | . . . . . 1 . 1 . . Coupler Status 1 | . . . . . . . 1 . . Unauthorized Hacks 11 | . 1 . . . . . 6 . 4 Terminals 10 | . 1 . . . . . 5 . 4 Assimilate 1 | . . . . . . . 1 . . Botnet 9 | . 1 . . . . . 4 . 4 Fabricators 1 | . . . . . . . 1 . . Prioritize 1 | . . . . . . . 1 . . Repair Stations . | . . . . . . . . . . Recycling Units . | . . . . . . . . . . Scanalyzers . | . . . . . . . . . . Garrison Access . | . . . . . . . . . . Data Cores Recovered . | . . . . . . . . . . Used . | . . . . . . . . . . Hacking Detections 13 | . 1 . . . 1 . 6 . 5 Full Trace Events 2 | . . . . . . . 1 . 1 Feedback Events . | . . . . . . . . . . Feedback Blocked . | . . . . . . . . . . Robot Schematics Acquired . | . . . . . . . . . . Robots Built 4 | . . . . . . . 4 . . Matter 504 | . . . . . . . 504 . . Time 100 | . . . . . . . 100 . . Total Robot Build Rating 16 | . . . . . . . 16 . . Part Schematics Acquired . | . . . . . . . . . . Parts Built . | . . . . . . . . . . Matter . | . . . . . . . . . . Time . | . . . . . . . . . . Total Part Build Rating . | . . . . . . . . . . Parts Repaired 1 | . . . . . . . 1 . . Time 13 | . . . . . . . 13 . . Parts Recycled . | . . . . . . . . . . Recycled Matter . | . . . . . . . . . . Retrieved Matter . | . . . . . . . . . . Retrieved Components . | . . . . . . . . . . Parts Scanalyzed . | . . . . . . . . . . Part Schematics Acquired . | . . . . . . . . . . Parts Damaged . | . . . . . . . . . . Bothacking | -11 -10 -10 -10 -9 -8 -8 -7 -7 -7 ------------ Run | Scr Mat Min Exi Min Mat Gar Fac Gar Fac Used RIF Installer 1 | . . . . . . 1 . . . Robots Hacked 4 | . . . . . . . . . 4 Non-combat 3 | . . . . . . . . . 3 Combat 1 | . . . . . . . . . 1 Robot Hacks Applied 8 | . . . . . . . . . 8 no_distress 1 | . . . . . . . . . 1 purge_threat 1 | . . . . . . . . . 1 find_terminals 1 | . . . . . . . . . 1 locate_traps 1 | . . . . . . . . . 1 block_reporting 1 | . . . . . . . . . 1 overload_power 2 | . . . . . . . . . 2 overwrite_iff 1 | . . . . . . . . . 1 Relay Couplers Released 4 | . . . . . . . . 4 . Machine Destruction 4 | . . . . . . . . 4 . Attached 2 | . . . . . . . . 2 . Robots Rewired . | . . . . . . . . . . Allies Hacked . | . . . . . . . . . . Hacks Repelled . | . . . . . . . . . . Allies | -11 -10 -10 -10 -9 -8 -8 -7 -7 -7 -------- Run | Scr Mat Min Exi Min Mat Gar Fac Gar Fac Total Allies 6 | . . . . . . . 5 . 1 Largest Group 5 | . . . . . . . 5 5 1 Highest-Rated Group 162 | . . . . . . . 162 162 32 Highest-Rated Ally 38 | . . . . . . . 38 38 32 Total Orders 11 | . . . . 4 . 3 . 4 . STAY 2 | . . . . . . . . 2 . ROAM 4 | . . . . 1 . 3 . . . FOLLOW 2 | . . . . . . . . 2 . RETURN 3 | . . . . 3 . . . . . Ally Attacks 33 | . . . . 6 . 10 . 17 . Total Damage 585 | . . . . . . . . 585 . Kills 4 | . . . . . . . . 4 . Allies Corrupted . | . . . . . . . . . . Allies Melted . | . . . . . . . . . . Intel | -11 -10 -10 -10 -9 -8 -8 -7 -7 -7 ------- Run | Scr Mat Min Exi Min Mat Gar Fac Gar Fac Robot Analysis Total . | . . . . . . . . . . Derelict Logs Recovered 1 | . . . . 1 . . . . . Drone Launches 19 | . . . . 9 . 10 . . . Drone Recoveries 3 | . . . . 3 . . . . . Exploration | -11 -10 -10 -10 -9 -8 -8 -7 -7 -7 ------------- Run | Scr Mat Min Exi Min Mat Gar Fac Gar Fac Turns Passed 3718 | 11 74 112 258 258 233 531 484 874 883 Spaces Moved 3579 | 22 132 126 338 192 76 416 595 752 930 Core 896 | 22 132 126 338 192 30 . . 56 . Treads . | . . . . . . . . . . Legs . | . . . . . . . . . . Wheels . | . . . . . . . . . . Hover . | . . . . . . . . . . Flight 2683 | . . . . . 46 416 595 696 930 Fastest Speed 34 | 50 50 50 50 50 40 40 40 37 34 Average Speed 43 | 50 50 50 50 69 83 44 40 42 34 Slowest Speed 440 | 50 50 50 50 400 150 440 40 120 40 Overloaded Moves . | . . . . . . . . . . Propulsion Burnouts . | . . . . . . . . . . Robots Hopped 11 | . . . . . . . 1 . 10 Cave-ins Triggered . | . . . . . . . . . . Time Travels 1 | . . . 1 . . . . . . Exploration Rate (%) 35 | 2 21 27 63 87 7 62 17 44 22 Regions Visited 9 Branch Regions 3 Pre-discovered Areas . | . . . . . . . . . . Known Exits Taken 4 | . 1 1 . . 1 . 1 . . Unknown Exits Taken 3 | 1 . . 1 1 . . . . . Scrap Searched 2 | . . 1 . 1 . . . . . Spaces Dug . | . . . . . . . . . . Terrain Destroyed 123 | . . . 2 42 . 79 . . . Melee . | . . . . . . . . . . Projectile 2 | . . . . 2 . . . . . AOE 121 | . . . 2 40 . 79 . . . Terrain Rammed . | . . . . . . . . . . Walls Destroyed . | . . . . . . . . . . Machines Disabled . | . . . . . . . . . . Actions | -11 -10 -10 -10 -9 -8 -8 -7 -7 -7 --------- Run | Scr Mat Min Exi Min Mat Gar Fac Gar Fac Total 5620 | 21 137 172 427 313 245 761 837 1250 1457 Wait 1802 | . 3 46 72 109 167 278 231 409 487 Move 3551 | 21 131 125 337 191 76 415 593 751 911 Hop 10 | . . . . . . . 1 . 9 Pick Up 9 | . . . 4 . . . 1 2 2 Fast Attach 34 | . 3 . 2 2 1 6 6 9 5 Attach 13 | . . . 1 3 . 3 1 3 2 Detach 12 | . . . 1 3 1 2 2 2 1 Swap 1 | . . . . . . . . . 1 Drop 19 | . . . 8 . . 3 1 1 6 Fire 98 | . . 1 2 5 . 1 1 55 33 Melee . | . . . . . . . . . . Ram . | . . . . . . . . . . Kick . | . . . . . . . . . . Crush . | . . . . . . . . . . Escape Stasis 71 | . . . . . . 53 . 18 . Rewire . | . . . . . . . . . . Trap . | . . . . . . . . . . Miscellaneous . | . . . . . . . . . . Route ------- -11/Scrapyard -10/Materials -10/Mines (discovered 2 exits: *Mat / *Exi) -10/Exiles -9/Mines (discovered 2 exits: *Mat x2) -8/Materials -8/Garrison (discovered 3 exits: *Fac x3) -7/Factory -7/Garrison -7/Factory History --------- Turn | Location | Event 3 | -11/Scrapyard | Discovered new exit (range 15) 12 | -11/Scrapyard | Entered Materials 78 | -10/Materials | Discovered new exit (range 6) 80 | -10/Materials | Identified exit to Mines 86 | -10/Materials | Entered Mines 119 | -10/Mines | Discovered new exit (range 4) 121 | -10/Mines | Identified exit to Materials 196 | -10/Mines | Deemed a non-threat by the Exiles lab entrance 196 | -10/Mines | Discovered new exit (range 5) 198 | -10/Mines | Identified exit to Exiles 198 | -10/Mines | Entered Exiles 215 | -10/Exiles | Met 8R-AWN 222 | -10/Exiles | Met EX-HEX 240 | -10/Exiles | Met EX-BIN 246 | -10/Exiles | Aligned with FarCom system 247 | -10/Exiles | Given EX-Vault access code 259 | -10/Exiles | Opened EX-Vault 263 | -10/Exiles | Found Prototype Energy Cannon 263 | -10/Exiles | Identified Firepult 267 | -10/Exiles | Found Prototype Storage 267 | -10/Exiles | Identified Lightpack 2.0 271 | -10/Exiles | Found Prototype Device 271 | -10/Exiles | Identified Chronowheel 271 | -10/Exiles | Activated Chronowheel 271 | -10/Exiles | Spacetime reconverged on an earlier point 285 | -10/Exiles | Warned to stay clear of 0b10 Research branches 287 | -10/Exiles | Exiles lab attacked by MAIN.C 335 | -10/Exiles | Build established: Mutant 436 | -10/Exiles | Discovered new exit (range 12) 456 | -10/Exiles | Left Exiles lab with Firepult 456 | -10/Exiles | Entered Mines 482 | -9/Mines | YI-UF0 nonchalantly dropped a Grenade Launcher on the ground 497 | -9/Mines | Learned Materials stockpile data 533 | -9/Mines | Core integrity fell below 50% 568 | -9/Mines | Core integrity fell below 20% 572 | -9/Mines | Found the Drone Emporium 574 | -9/Mines | Found Prototype Device 574 | -9/Mines | Identified Bomb Drone Bay 600 | -9/Mines | Discovered new exit (range 48) 604 | -9/Mines | Discovered new exit (range 26) 714 | -9/Mines | Entered Materials 714 | -8/Materials | Evolved 4 slots: Utility x4 947 | -8/Materials | Identified exit to Garrison 947 | -8/Materials | Entered Garrison 974 | -8/Garrison | Triggered checkpoint 985 | -8/Garrison | Triggered checkpoint 985 | -8/Garrison | Triggered checkpoint 1119 | -8/Garrison | Discovered new exit (range 11) 1126 | -8/Garrison | Installed Relay Interface Framework 1157 | -8/Garrison | Discovered new exit (range 9) 1174 | -8/Garrison | Triggered checkpoint 1431 | -8/Garrison | Triggered checkpoint 1455 | -8/Garrison | Discovered new exit (range 12) 1473 | -8/Garrison | Phase Generator disabled 1478 | -8/Garrison | Entered Factory 1478 | -7/Factory | Evolved 2 slots: Utility x2 1615 | -7/Factory | Repaired Flight Unit 1826 | -7/Factory | Fabricated X-62 Marksman (x2) 1861 | -7/Factory | Fabricated X-62 Marksman (x2) 1877 | -7/Factory | Local fabrication network quarantined 1951 | -7/Factory | Identified exit to Garrison 1962 | -7/Factory | Entered Garrison 1962 | -7/Garrison | Accompanied by 5 allies 2104 | -7/Garrison | Triggered checkpoint 2197 | -7/Garrison | Core integrity fell below 50% 2331 | -7/Garrison | Garrison Relay disabled 2590 | -7/Garrison | Triggered checkpoint 2630 | -7/Garrison | Build established: Bothacker-Mutant 2679 | -7/Garrison | Discovered new exit (range 10) 2836 | -7/Garrison | Entered Factory 2836 | -7/Factory | Accompanied by 1 ally 3204 | -7/Factory | Core integrity fell below 20% 3719 | -7/Factory | Destroyed by Y-54 Guardian with Gatling Laser Last Messages --------------- 03679_ U-05 Engineer lays Concrete. 03708_ Slug penetrates Wall. 03708_ U-05 Engineer destroyed. 03711_ Slug penetrates Door. 03713_ U-05 Engineer builds a Door. 03714_ Slug penetrates Wall. 03716_ Connecting with Terminal... >>Trojan(Botnet) Trojan loaded successfully. Testing... Terminal linked with 3 systems. Awaiting botnet instructions. >>Enumerate(Squads) Retrieving dispatch records... Found 36 active squads: 11x Security 8x Surveillance 9x Patrol 8x Transport 03718_ Penetrated by Slug. Map ----- +----------------------------------------------------+ | ?????????????????????????????????????????????????? | | ?????????????????????????????????????????????????? | | ?????????????????????????????????????????????????? | | ?????????????????????????????????????????????????? | | ?????????????????????????????????????????????????? | | ?????????????????????????????????????????????????? | | ?????????????????????????????????????????????????? | | ?????????????????????????????????????????????????? | | ?????????????????????????????????????????????????? | | ?????????????????????????????????????????????????? | | ?????????????????????????????????????????????????? | | ?????????????????????????????????????????????????? | | ?????????????????????????????????????????????????? | | ?????????????????????????????????????????????????? | | ?????????????????????????????????????????????????? | | ?????????????????????????????????????Y???????????? | | ?????????????????????????????????????????????????? | | ?????????????????????????????????????????????????? | | ??#########??????????????????????????????????????? | | ??# #???????????????????#??????????????????? | | ??#""" ""#??????????????????k#??????????????????? | | ??#""" ""#???????????#+#??## ###????????????????? | | ??#""" ""#??????????## ### #????????????????? | | ??# T#??????????# r #????????????????? | | ??#""" ""#??????????# r Y #?????????Y??????? | | ??#""" ""#??????????# @ #????????????????? | | ??#""" ""#??????????# ## #????????????????? | | ??# #??????????# #???+###????????????????? | | ??# #????????#?# #???????????????????????? | | ??# #???????"#?# #???????????????????????? | | ??####+####???????"### ###?????????????????????? | | ??# #?????? # #?????????????????????? | | ??# #######+##u #?????????????????????? | | ??# !* T" #?????????????????????? | | ??# !%| " #?????????????????????? | | ??# =! h #?????????????????????? | | ??# ! ########## #?????????????????????? | | ??# #????????# #?????????????????????? | | ??## ##????????## ##?????????????????????? | | ???# #??????????# #??????????????????????? | | ???# #??????????# #??????????????????????? | | ???# #??????????# #??????????????????????? | | ???# #??????????# #??????????????????????? | | #### #??????????# #??????????????????????? | | #??????????# #??????????????????????? | | ######/#+#######????? ??????????????????????? | | #????? ??????????????????????? | | """"^"""" """" #????? ????????????????????????? | | """" """" """" #?????? ??????????????????????????? | | """" """" """" #?????????????????????????????????? | +----------------------------------------------------+ Best States ------------- Heat Dissipation 48 Coolant Potential 65 Energy Generation 14 Energy Capacity 160 Matter Stores 300 Matter Capacity 300 Sight Range 16 Terrain Scan Density 10 Melee Speed Boost 40 Evasion (%) 63 Melee Accuracy 24 Target Analysis 5 Core Analysis 6 Relay Coupler Types 53 Relay Coupler Value 2 Item Schematics ----------------- None Robot Schematics ------------------ None Fabricated ------------ X-62 Marksman | x2 | -7/Factory | Preloaded X-62 Marksman | x2 | -7/Factory | Preloaded Alien Tech Used ----------------- None Achievements -------------- None Challenges ------------ None Game ------ Seed OverloadCloakSplitter Manual? 0 Play Time 01:09:33 Cumulative 78.5 hours Start 2020.09.29 @ 23:37:39 End 2020.10.01 @ 01:18:49 Sessions 3 Manual Loads 0 Difficulty Rogue Special Mode None Game No. 109 Rogue 85 Adventurer 22 Explorer 2 Win Type - Total 1 Types 1/0/0/0/0/0/0/0/0 Lore% 43 Gallery% 47 Achievement% 39 Wizard Run 0 Options --------- ASCII 0 Keyboard 0 Movement Numpad Keybinds 0 Fullscreen 1 Font 14/SmallcapsGlow Map View 84x54 Tactical HUD 1 Map Filters NONE Filters NONE Steam 1 RUN: f2b5c55e-f1a3-49b6-b700-55efadbeb536